Cogmind - Beta 11 @@@ ROGUE MODE // 2022.03.22 @ 18:38:44 Player: Red Box Result: Self-destructed Performance ------------- Evolutions (1) 500 Regions Visited (3) 600 Robots Destroyed (39) 195 Value Destroyed (960) 960 Prototype IDs (5) 100 Alien Tech Used (0) 0 Bonus (0) 0 TOTAL SCORE: 2355 Bonus ------- None Cogmind --------- Core Integrity 389/400 Matter 300/300 Energy 250/250 System Corruption 0% Temperature Cool (4) Movement Rolling (115) Ox1 Location -9/Materials Parts ------- > --- POWER (1) -------- Ion Engine > --- PROPULSION (2) --- Compact Wheel Compact Wheel > --- UTILITY (3) ------ Improved Heat Sink High-capacity Storage Unit Light Armor Plating > --- WEAPON (3) ------- Beam Cannon Particle Cannon Advanced Beam Cannon > --- INVENTORY (20) --- Reinforced Ion Engine Light Treads Light Treads Wheel Wheel Heat Sink High-capacity Storage Unit Large Battery (200) Experimental Sensor Array Beam Rifle Beam Rifle Beam Rifle Beam Cannon Advanced Beam Cannon Advanced Beam Cannon Advanced Beam Cannon Advanced Beam Cannon Light Cannon Mini Grenade Launcher Mining Laser Peak State ------------ > --- POWER ------------ Ion Engine > --- PROPULSION ------- Compact Wheel Compact Wheel > --- UTILITY ---------- Improved Heat Sink High-capacity Storage Unit Experimental Sensor Array > --- WEAPON ----------- Medium Laser Medium Laser Beam Rifle > --- INVENTORY -------- Ion Engine Light Treads Light Treads Light Treads High-capacity Storage Unit Large Battery Light Armor Plating Beam Rifle Beam Rifle Beam Rifle Beam Cannon Beam Cannon Assault Rifle Assault Rifle Light Cannon Mini Grenade Launcher [Rating: 22] Favorites ----------- Power Ion Engine Engine Ion Engine Propulsion Compact Wheel Leg Aluminum Leg Wheel Compact Wheel Utility High-capacity Storage Unit Device Heat Sink Storage High-capacity Storage Unit Protection Light Armor Plating Weapon Medium Laser Energy Gun Medium Laser Energy Cannon Advanced Beam Cannon Launcher Mini Grenade Launcher Build | -11 -10 -10 -9 ------- Run | Scr Mat Min Mat Slots Evolved 2 | . . . 2 Power . | . . . . Propulsion . | . . . . Utility 1 | . . . 1 Weapon 1 | . . . 1 Parts Attached 37 | 6 17 6 8 Power 5 | 1 2 1 1 Engine 5 | 1 2 1 1 Core . | . . . . Reactor . | . . . . Propulsion 8 | 2 5 1 . Treads . | . . . . Leg 2 | 2 . . . Wheel 6 | . 5 1 . Hover . | . . . . Flight . | . . . . Utility 9 | 1 5 1 2 Device 5 | . 3 1 1 Storage 3 | 1 2 . . Processor . | . . . . Hackware . | . . . . Protection 1 | . . . 1 Artifact . | . . . . Weapon 15 | 2 5 3 5 Energy Gun 10 | 2 4 2 2 Energy Cannon 3 | . . . 3 Ballistic Gun . | . . . . Ballistic Cannon . | . . . . Launcher 2 | . 1 1 . Special Weapon . | . . . . Impact Weapon . | . . . . Slashing Weapon . | . . . . Piercing Weapon . | . . . . Special Melee Weapon . | . . . . Unidentified Prototypes 2 | . . . 2 Parts Lost 4 | . 1 2 1 Power . | . . . . Propulsion 2 | . 1 1 . Utility 1 | . . 1 . Weapon 1 | . . . 1 Highest Loss Streak 1 | . 1 1 1 To Critical Strikes . | . . . . Average Slot Usage (%) 98 | . 97 99 99 Engine 13 | . 13 14 11 Leg 6 | . 10 . . Wheel 20 | . 17 27 22 Device 12 | . 12 14 11 Storage 13 | . 14 14 11 Protection 1 | . . . 10 Energy Gun 24 | . 27 27 7 Energy Cannon 4 | . . . 25 Naked Turns . | . . . . Heaviest Build 60 | 14 51 50 60 Greatest Support 32 | 20 32 32 32 Greatest Overweight (x) 3 | . 3 1 1 Average Overweight (x) . | . . 1 1 Largest Inventory Capacity 20 | 8 20 20 20 Average Capacity 17 | 7 16 20 20 Most Carried 20 | 6 20 19 20 Average Carried 16 | 2 15 18 18 Final Capacity 20 | 8 20 20 20 Final Carried 20 | 6 19 18 20 Class Distribution -------------------- 84% | Mutant 15% | Tank Dominant Class ---------------- Mutant | -10/Materials Mutant | -10/Mines Tank | -9/Materials Resources | -11 -10 -10 -9 ----------- Run | Scr Mat Min Mat Matter Collected 590 | 217 193 105 75 Remotely . | . . . . Salvage Created 1295 | . 539 227 529 Parts 91 | . 41 13 37 Haulers Intercepted 4 | . 2 . 2 Recyclers Shooed . | . . . . Parts Field Recycled . | . . . . Retrieved Matter . | . . . . Parts Self-Destructed . | . . . . Prevented . | . . . . Kills | -11 -10 -10 -9 ------- Run | Scr Mat Min Mat Combat Hostiles Destroyed 26 | . 9 9 8 Guns 11 | . 8 1 2 Cannons 6 | . . . 6 AOE 7 | . . 7 . Classes Destroyed 8 | . 6 . 2 Builder 2 | . 1 . 1 Hauler 4 | . 2 . 2 Recycler 1 | . 1 . . Watcher 6 | . 3 . 3 Swarmer 6 | . 3 3 . Grunt 16 | . 6 6 4 Brawler 1 | . . . 1 Sentry 3 | . . . 3 Best Kill Streak 5 | . 4 4 5 Combat Bots Only 5 | . 3 4 5 Max Kills in Single Turn 3 | . 1 3 1 Gunslinging . | . . . . Exploded 3 | . . 3 . Melee . | . . . . Uniques/NPCs Destroyed . | . . . . Combat | -11 -10 -10 -9 -------- Run | Scr Mat Min Mat Damage Taken 774 | . 328 257 189 Core 174 | . 74 89 11 Absorbed by Shields . | . . . . Regen/Repaired (Parts) 59 | . 59 . . Core Remaining (%) 67 | 100 . 34 . Volleys Fired 79 | . 37 12 30 Largest 3 | . 2 2 3 Hottest 196 | . 100 100 196 Shots Fired 179 | . 71 24 84 Gun 119 | . 71 21 27 Cannon 57 | . . . 57 Launcher 3 | . . 3 . Special . | . . . . Kinetic . | . . . . Thermal 176 | . 71 21 84 Explosive 3 | . . 3 . Electromagnetic . | . . . . Robot Hit Streak 16 | . 9 6 16 Robot Miss Streak 4 | . 3 3 4 Penetration Max . | . . . . Secondary Targets 2 | . 2 . . Max Gunslinging Chain 1 | . 1 . . Shots Hit Robots 105 | . 42 13 50 Core Hits 53 | . 25 11 17 Critical Kills . | . . . . Critical Parts Destroyed . | . . . . Critical Strikes 10 | . 6 3 1 Burn 10 | . 6 3 1 Melee Attacks . | . . . . Impact . | . . . . Slashing . | . . . . Piercing . | . . . . Sneak Attacks . | . . . . Combat Hostiles . | . . . . Follow-up Attacks . | . . . . Damage Inflicted 1925 | . 560 440 925 Guns 940 | . 560 152 228 Cannons 697 | . . . 697 Explosions 288 | . . 288 . Melee . | . . . . Ramming . | . . . . Kinetic . | . . . . Thermal 1637 | . 560 152 925 Explosive 288 | . . 288 . Electromagnetic . | . . . . Impact . | . . . . Slashing . | . . . . Piercing . | . . . . Highest Corruption . | . . . . Average Corruption . | . . . . Corruption Purged . | . . . . Corruption Blocked . | . . . . Overload Shots . | . . . . Overflow Damage 31 | . . 10 21 Projectiles 21 | . . . 21 Explosions 10 | . . 10 . Melee . | . . . . Knockbacks . | . . . . Impact . | . . . . Kinetic . | . . . . Secondary . | . . . . Self-Inflicted Damage 12 | . . 12 . Shots 1 | . . 1 . Rammed . | . . . . Targets Rammed . | . . . . Kicked . | . . . . Crushed . | . . . . Highest Temperature 338 | . 234 75 338 Average Temperature 82 | . 56 19 116 Received Heat Transfer 351 | . 153 138 60 Effects 3 | . . . 3 Interference 3 | . . . 3 Siege Activations . | . . . . Robots Corrupted . | . . . . Combat Hostiles . | . . . . Parts Fried . | . . . . Impact Corruptions . | . . . . Robots Melted 3 | . 2 1 . Combat Hostiles 2 | . 1 1 . Parts Melted 12 | . 9 1 2 Heat Transferred 4773 | . 2109 666 1998 Parts Sabotaged . | . . . . Parts Stolen . | . . . . Parts Stripped . | . . . . Power Chain Reactions . | . . . . Missiles Intercepted . | . . . . Alert | -11 -10 -10 -9 ------- Run | Scr Mat Min Mat Peak Influence 374 | . 171 276 374 Initial 29 | . . 1 29 Average 90 | . 39 182 176 Maximum Alert Level 1 | . . 1 1 Low Security (%) 82 | 100 100 45 64 Level 1 17 | . . 54 35 Level 2 . | . . . . Level 3 . | . . . . Level 4 . | . . . . Level 5 . | . . . . High Security . | . . . . Max Security . | . . . . Squads Dispatched 4 | . 1 . 3 Investigation 3 | . 1 . 2 Extermination . | . . . . Reinforcement 1 | . . . 1 Assault . | . . . . Garrison . | . . . . Intercept . | . . . . Searches Triggered . | . . . . Construction Impeded . | . . . . Haulers Reinforced . | . . . . Active Scanning Responses . | . . . . Cargo Convoy Interrupts . | . . . . Stealth | -11 -10 -10 -9 --------- Run | Scr Mat Min Mat Distress Signals 2 | . 1 . 1 Communications Jammed . | . . . . Distress Signals . | . . . . Times Spotted 33 | . 13 5 15 Peak Tracking Total 5 | . 4 4 5 Tactical Retreats 1 | . . . 1 Traps | -11 -10 -10 -9 ------- Run | Scr Mat Min Mat Traps Triggered 5 | . 5 . . Indirectly . | . . . . Trap Hack Attempts . | . . . . Triggered . | . . . . Disarmed . | . . . . Reprogrammed . | . . . . Reused . | . . . . Traps Extracted . | . . . . Installed . | . . . . Triggered . | . . . . Machines | -11 -10 -10 -9 ---------- Run | Scr Mat Min Mat Machines Disabled . | . . . . Max in Single Turn . | . . . . Machines Sabotaged . | . . . . Garrisons Compromised . | . . . . Overloaded Fab Kills . | . . . . Hacking | -11 -10 -10 -9 --------- Run | Scr Mat Min Mat Machines Accessed 12 | . 7 . 5 Terminals 8 | . 5 . 3 Fabricators . | . . . . Repair Stations 1 | . 1 . . Recycling Units 1 | . 1 . . Scanalyzers 2 | . . . 2 Garrison Access . | . . . . Total Hacks 46 | . 25 . 21 Successful 31 | . 20 . 11 Failed 15 | . 5 . 10 Catastrophic . | . . . . Database Lockouts . | . . . . Manual 20 | . 18 . 2 Terminals 29 | . 21 . 8 Fabricators . | . . . . Repair Stations 2 | . 2 . . Recycling Units 2 | . 2 . . Scanalyzers 13 | . . . 13 Garrison Access . | . . . . Terminal Hacks 13 | . 8 . 5 Part Schematic 2 | . 2 . . Robot Analysis 3 | . 2 . 1 Prototype ID Bank 2 | . 1 . 1 Branch Access Points 1 | . . . 1 Terminal Index 1 | . 1 . . Locate Traps 1 | . 1 . . Recall Investigation 1 | . . . 1 Zone Layout 2 | . 1 . 1 Fabricator Hacks . | . . . . Repair Station Hacks 2 | . 2 . . Scan Component 1 | . 1 . . Repair 1 | . 1 . . Recycling Unit Hacks 1 | . 1 . . Retrieve Components 1 | . 1 . . Scanalyzer 5 | . . . 5 Insert Component 2 | . . . 2 Analyze 3 | . . . 3 Garrison Access Hacks . | . . . . Unauthorized Hacks 10 | . 9 . 1 Terminals 9 | . 8 . 1 Track 2 | . 2 . . Botnet 5 | . 4 . 1 Operators 2 | . 2 . . Fabricators . | . . . . Repair Stations . | . . . . Recycling Units 1 | . 1 . . Reject 1 | . 1 . . Scanalyzers . | . . . . Garrison Access . | . . . . Data Cores Recovered . | . . . . Used . | . . . . Hacking Detections 12 | . 7 . 5 Full Trace Events 3 | . . . 3 Feedback Events . | . . . . Feedback Blocked . | . . . . Robot Schematics Acquired . | . . . . Robots Built . | . . . . Authchips . | . . . . Time . | . . . . Total Robot Build Rating . | . . . . Part Schematics Acquired 3 | . 2 . 1 Parts Built . | . . . . Authchips . | . . . . Time . | . . . . Total Part Build Rating . | . . . . Parts Repaired 1 | . 1 . . Time 26 | . 26 . . Parts Recycled . | . . . . Recycled Matter . | . . . . Retrieved Matter . | . . . . Retrieved Components 9 | . 9 . . Parts Scanalyzed 1 | . . . 1 Part Schematics Acquired 1 | . . . 1 Parts Damaged 1 | . . . 1 Bothacking | -11 -10 -10 -9 ------------ Run | Scr Mat Min Mat Used RIF Installer . | . . . . Robots Hacked . | . . . . Non-combat . | . . . . Combat . | . . . . Robot Hacks Applied . | . . . . Relay Couplers Released . | . . . . Fabnet Peak Effective % . | . . . . Robots Rewired . | . . . . Allies Hacked . | . . . . Hacks Repelled . | . . . . Allies | -11 -10 -10 -9 -------- Run | Scr Mat Min Mat Total Allies . | . . . . Largest Group . | . . . . Highest-Rated Group . | . . . . Highest-Rated Ally . | . . . . Total Orders . | . . . . Ally Attacks . | . . . . Total Damage . | . . . . Kills . | . . . . Allies Corrupted . | . . . . Allies Melted . | . . . . Intel | -11 -10 -10 -9 ------- Run | Scr Mat Min Mat Robot Analysis Total 3 | . 2 . 1 Derelict Logs Recovered 1 | . . 1 . Drone Launches . | . . . . Drone Recoveries . | . . . . Exploration | -11 -10 -10 -9 ------------- Run | Scr Mat Min Mat Turns Passed 2558 | 77 1520 520 441 Spaces Moved 1830 | 55 1092 413 270 Core 4 | 4 . . . Treads . | . . . . Legs 423 | 51 372 . . Wheels 1403 | . 720 413 270 Hover . | . . . . Flight . | . . . . Fastest Speed 50 | 50 115 115 115 Average Speed 116 | 114 117 115 115 Slowest Speed 260 | 120 260 115 115 Overloaded Moves . | . . . . Propulsion Burnouts . | . . . . Robots Hopped . | . . . . Cave-ins Triggered . | . . . . Exploration Rate (%) 58 | 3 99 97 36 Regions Visited 3 Branch Regions 1 Pre-discovered Areas . | . . . . Known Exits Taken 1 | . . 1 . Unknown Exits Taken 2 | 1 1 . . Scrap Searched 1 | . . 1 . Spaces Dug . | . . . . Terrain Destroyed 25 | . . 25 . Melee . | . . . . Projectile . | . . . . AOE 25 | . . 25 . Terrain Rammed . | . . . . Walls Destroyed . | . . . . Machines Disabled . | . . . . Actions | -11 -10 -10 -9 --------- Run | Scr Mat Min Mat Total 2094 | 66 1257 432 339 Wait 69 | . 59 . 10 Move 1827 | 54 1091 412 270 Hop . | . . . . Pick Up 52 | 6 33 1 12 Fast Attach 11 | 6 5 . . Attach 12 | . 5 2 5 Detach 1 | . . . 1 Swap 14 | . 7 4 3 Drop 29 | . 20 1 8 Fire 79 | . 37 12 30 Melee . | . . . . Ram . | . . . . Kick . | . . . . Crush . | . . . . Escape Stasis . | . . . . Rewire . | . . . . Trap . | . . . . Miscellaneous . | . . . . Route ------- -11/Scrapyard -10/Materials (discovered 5 exits: *Mat x3 / [*Min x2]) -10/Mines (discovered 3 exits: *Mat x2 / [*Exi]) -9/Materials (discovered 1 exit: Min) History --------- Turn | Location | Event 6 | -11/Scrapyard | Discovered new exit (range 15) 78 | -11/Scrapyard | Entered Materials 260 | -10/Materials | Discovered new exit (range 15) 320 | -10/Materials | Build established: Mutant 390 | -10/Materials | Discovered new exit (range 7) 912 | -10/Materials | Discovered new exit (range 8) 1028 | -10/Materials | Discovered new exit (range 13) 1155 | -10/Materials | Discovered new exit (range 16) 1585 | -10/Materials | Repaired Med. Laser 1598 | -10/Materials | Entered Mines 1650 | -10/Mines | Deemed a non-threat by the Exiles lab entrance 1650 | -10/Mines | Discovered new exit (range 5) 1711 | -10/Mines | Core integrity fell below 50% 1745 | -10/Mines | Discovered new exit (range 5) 1901 | -10/Mines | Identified exit to Materials 1912 | -10/Mines | Found a damaged Exp. Sensor Array with a note attached 1914 | -10/Mines | Found Prototype Device 1941 | -10/Mines | Received a Rocket Launcher from a helpful Derelict 2118 | -10/Mines | Entered Materials 2118 | -9/Materials | Evolved 2 slots: Utility x1, Weapon x1 2119 | -9/Materials | Identified Exp. Sensor Array 2506 | -9/Materials | Build established: Tank 2510 | -9/Materials | Identified exit to Mines 2559 | -9/Materials | Self-destructed Last Messages --------------- 02510_ Connecting with Terminal... >>Access(Branch) Found 1 branch access point: (48,49) Mines Map updated. 02513_ Destroyed Sensor Array. 02548_ Y-45 Defender heat spikes uncontrollably. 02549_ Y-45 Defender heat damages Imp. Ion Engine. 02550_ Y-45 Defender heat damages Heat Sink. 02558_ K-01 Serf cleans the Atomic Centrifuge. 02559_ Connecting with Scanalyzer... >>Insert(Exp. Sensor Array) Scanning Exp. Sensor Array... Ready to analyze. >>Scanalyze Scanning: Exp. Sensor Array... Scan incomplete, additional scanning required. >>Scanalyze Scanning: Exp. Sensor Array... Schematic downloaded. Map ----- +----------------------------------------------------+ | ????????????????????# ############ | | ????????????????????# T T | | ????????????????????# ######+##### | | ????????????????????## ##???? ???# | | ?????????????????+???# #????? ???### | | ????????????????? ???# #???? ! ????# | | ????????????????? ???# #???? ????# | | ????????????????? ???# #???# ???# | | ????????????????? ???# #???# ???# | | ????????????????? ???# #???########??# | | ????????????????? ???# #?????????????# | | ????????????????# #??# #?????????????# | | ????????????????# #??# #?????????????#? | | ????????????????# #??# #??????????????? | | ????????????????# #??# #??????????????? | | ????????????????# #??# #??????????????? | | ????????######### #### #??????????????? | | ???????# k # #??????????????? | | ???????# """ # #??????????????? | | ???????# """ # ######?????????? | | ???????# """ # ?????? | | ???????# + ?????? | | ???????# "" # ?????? | | ???????# """ ### ############??????? | | ???????# S" #?# #?????????????????? | | ???????# @ #?# #?????????????????? | | ???????##########?# #?????????????????? | | ??????????????????# #?????????????????? | | ??????????????????# #?????????????????? | | ?????????????????? ?????????????????? | | ?????????????????? ?????????????????? | | ?????????????????? ?????????????????? | | ?????????????????? ?????????????????? | | ?????????????????? ?????????????????? | | ??????????????????????????????????????? | | ??????????????????????????????????????? | | ??????????????????????????????????????? | | ??????????????????????????????????????? | | ??????????????????????????????????????? | | ??????????????????????????????????????? | | ??????????????????????????????????????? | | ??????????????????????????????????????? | | ??????????????????????????????????????? | | ??????????????????????????????????????? | | ??????????????????????????????????????? | | ??????????????????????????????????????? | | ??????????????????????????????????????? | | ??????????????????????????????????????? | | ??????????????????????????????????????? | | ??????????????????????????????????????? | +----------------------------------------------------+ Best States ------------- Heat Dissipation 42 Energy Generation 10 Energy Capacity 250 Matter Stores 300 Matter Capacity 300 Sight Range 16 Robot Scan Range 20 Terrain Scan Range 14 Terrain Scan Density 10 Armor Coverage 150 Evasion (%) 55 Item Schematics ----------------- Hcp. Battery | -10/Materials | Hacked Hcp. Storage Unit | -10/Materials | Hacked Exp. Sensor Array | -9/Materials | Scanalyzed Robot Schematics ------------------ None Fabricated ------------ Nothing Alien Tech Used ----------------- None Achievements -------------- None Challenges ------------ None Game ------ Seed GuidanceCentriumPerforator Manual? 0 Play Time 00:28:39 Cumulative 170.4 hours Start 2022.03.22 @ 18:10:41 End 2022.03.22 @ 18:38:44 Sessions 1 Manual Loads 0 Difficulty Rogue Special Mode None Game No. 165 Rogue 165 Adventurer 0 Explorer 0 Win Type - Total 0 Types 0/0/0/0/0/0/0/0/0 Lore% 39 Gallery% 46 Achievement% 35 Wizard Run 0 Options --------- ASCII 0 Keyboard 0 Movement Mouse Keybinds 0 Fullscreen 1 Font 16/SmallcapsGlow Map View 75x55 Tactical HUD 1 Map Filters NONE Filters NONE Steam 1 RUN: 5becec4f-368f-405f-8489-4a9a2bc57dc1